lending/lending_fUSD_20250131
["ID","MTS","AMOUNT","RATE_DAILY","PERIOD"]
[351116180,1738342250877,-2162.72,0.00016575,2]
[351116181,1738342250887,-500.0,0.00016575,2]
[351116182,1738342250897,-1056.54,0.00016575,2]
[351116183,1738342250906,-500.0,0.00016575,2]
[351116184,1738342250915,-502.36866897,0.00016575,2]
[351116185,1738342250925,-876.06,0.00016575,2]
[351116186,1738342250936,-1223.0,0.00016575,2]
[351116187,1738342250945,-500.0,0.00016575,2]
[351116188,1738342250955,-500.0,0.00016575,2]
[351116189,1738342250963,-500.0,0.00016575,2]
[351116190,1738342250972,-910.6,0.00016575,2]
[351116191,1738342250982,-1077.13,0.00016575,2]
[351116192,1738342250991,-543.95,0.00016575,2]
[351116193,1738342251000,-500.0,0.00016575,2]
[351116194,1738342251010,-500.0,0.00016575,2]
[351116195,1738342251019,-637.88,0.00016575,2]
[351116196,1738342251030,-548.61,0.00016575,2]
[351116197,1738342251040,-500.0,0.00016575,2]
[351116198,1738342251050,-500.0,0.00016575,2]
[351116199,1738342251061,-500.0,0.00016575,2]
[351116200,1738342251071,-500.0,0.00016575,2]
[351116201,1738342251080,-854.38,0.00016575,2]
[351116202,1738342251090,-1738.96,0.00016575,2]
[351116203,1738342251100,-500.0,0.00016575,2]
[351116204,1738342251109,-985.04,0.00016575,2]
[351116205,1738342251118,-500.0,0.00016575,2]
[351116206,1738342251128,-500.0,0.00016575,2]
[351116207,1738342251137,-500.0,0.00016575,2]
[351116208,1738342251147,-696.95,0.00016575,2]
[351116209,1738342251157,-500.0,0.00016575,2]
[351116210,1738342251166,-268.38926983,0.00016575,2]
[351116211,1738342251176,-736.48,0.00016575,2]
[351116212,1738342251185,-306.0,0.00016575,2]
[351116213,1738342251194,-907.33,0.00016575,2]
[351116214,1738342251204,-1084.41,0.00016575,2]
[351116215,1738342251213,-500.0,0.00016575,2]
[351116216,1738342251224,-500.0,0.00016575,2]
[351116217,1738342251234,-500.0,0.00016575,2]
[351116218,1738342251244,-500.0,0.00016575,2]
[351116219,1738342251254,-590.95,0.00016575,2]
[351116220,1738342251264,-1161.06,0.00016575,2]
[351116221,1738342251273,-1073.16,0.00016575,2]
[351116222,1738342251283,-500.0,0.00016575,2]
[351116223,1738342251292,-625.53,0.00016575,2]
[351116224,1738342251301,-1101.76,0.00016575,2]
[351116225,1738342251310,-1873.5,0.00016575,2]
[351116226,1738342251321,-599.69,0.00016575,2]
[351116227,1738342251330,-500.0,0.00016575,2]
[351116228,1738342251339,-1821.67,0.00016575,2]
[351116229,1738342251349,-1313.27,0.00016575,2]
[351116230,1738342251358,-500.0,0.00016575,2]
[351116231,1738342251367,-618.56,0.00016575,2]
[351116232,1738342251376,-500.0,0.00016575,2]
[351116233,1738342251385,-500.0,0.00016575,2]
[351116234,1738342251395,-382.85993056,0.00016575,2]
[351116235,1738342251404,-500.0,0.00016575,2]
[351116236,1738342251413,-2153.97,0.00016575,2]
[351116237,1738342251422,-500.0,0.00016575,2]
[351116238,1738342251431,-500.0,0.00016575,7]
[351116239,1738342251440,-500.0,0.00016575,2]
[351116240,1738342251451,-2200.41,0.00016575,2]
[351116241,1738342251459,-500.0,0.00016575,2]
[351116242,1738342251469,-1292.23,0.00016575,2]
[351116243,1738342251481,-500.0,0.00016575,2]
[351116244,1738342251493,-500.0,0.00016575,2]
[351116245,1738342251503,-500.0,0.00016575,2]
[351116246,1738342251513,-647.39,0.00016575,2]
[351116247,1738342251522,-500.0,0.00016575,2]
[351116248,1738342251532,-500.0,0.00016575,2]
[351116249,1738342251541,-2161.46,0.00016575,2]
[351116250,1738342251551,-812.84,0.00016575,2]
[351116251,1738342251561,-500.0,0.00016575,2]
[351116252,1738342251572,-859.99,0.00016575,2]
[351116253,1738342251581,-1964.96,0.00016575,2]
[351116254,1738342251590,-1333.15,0.00016575,2]
[351116255,1738342251599,-663.52,0.00016575,2]
[351116256,1738342251608,-597.11,0.00016575,2]
[351116257,1738342251618,-500.0,0.00016575,2]
[351116258,1738342251628,-500.0,0.00016575,2]
[351116259,1738342251637,-500.0,0.00016575,2]
[351116260,1738342251646,-500.0,0.00016575,2]
[351116261,1738342251655,-419.06093953,0.00016575,2]
[351116262,1738342251663,-500.0,0.00016575,2]
[351116263,1738342251672,-580.35,0.00016575,2]
[351116264,1738342251681,-808.41,0.00016575,2]
[351116265,1738342251690,-500.0,0.00016575,2]
[351116266,1738342251700,-1589.04,0.00016575,2]
[351116267,1738342251709,-500.0,0.00016575,2]
[351116268,1738342251718,-1060.78,0.00016575,2]
[351116269,1738342251727,-500.0,0.00016575,2]
[351116270,1738342251736,-500.0,0.00016575,2]
[351116271,1738342251745,-500.0,0.00016575,2]
[351116272,1738342251755,-793.55,0.00016575,2]
[351116273,1738342251763,-500.0,0.00016575,2]
[351116274,1738342251772,-993.9,0.00016575,2]
[351116275,1738342251782,-4214.69,0.00016575,2]
[351116276,1738342251793,-500.0,0.00016575,2]
[351116277,1738342251802,-500.0,0.00016575,2]
[351116278,1738342251811,-607.58,0.00016575,2]
[351116279,1738342251821,-500.0,0.00016575,2]
[351116280,1738342251830,-928.84,0.00016575,2]
[351116281,1738342251839,-2629.44,0.00016575,2]
[351116282,1738342251849,-652.41,0.00016575,2]
[351116283,1738342251859,-500.0,0.00016575,2]
[351116284,1738342251868,-500.0,0.00016575,2]
[351116285,1738342251877,-599.97,0.00016575,2]
[351116286,1738342251886,-2238.64,0.00016575,2]
[351116287,1738342251895,-512.024878,0.00016575,2]
[351116288,1738342251904,-1964.96,0.00016575,2]
[351116289,1738342251915,-500.0,0.00016575,2]
[351116290,1738342251924,-697.51,0.00016575,2]
[351116291,1738342251933,-640.63,0.00016575,2]
[351116292,1738342251942,-419.81630831,0.00016575,2]
[351116293,1738342251951,-1888.52,0.00016575,2]
[351116294,1738342251960,-500.0,0.00016575,2]
[351116295,1738342251969,-500.0,0.00016575,2]
[351116296,1738342251979,-727.94,0.00016575,2]
[351116297,1738342251988,-500.0,0.00016575,2]
[351116298,1738342251997,-1014.48,0.00016575,2]
[351116299,1738342252006,-828.89,0.00016575,2]
[351116300,1738342252016,-500.0,0.00016575,2]
[351116301,1738342252025,-500.0,0.00016575,2]
[351116302,1738342252034,-500.0,0.00016575,2]
[351116303,1738342252043,-500.0,0.00016575,2]
[351116304,1738342252214,-1487.99,0.00016575,2]
[351116305,1738342252253,-3222.5,0.00016575,2]
[351116306,1738342252262,-1795.19,0.00016575,2]
[351116307,1738342252271,-2265.6,0.00016575,2]
[351116308,1738342252282,-872.12,0.00016575,2]
[351116309,1738342252291,-500.0,0.00016575,2]
[351116310,1738342252301,-816.69,0.00016575,2]
[351116311,1738342252310,-500.0,0.00016575,2]
[351116312,1738342252321,-370.6382123,0.00016575,2]
[351116313,1738342252330,-193.9010618,0.00016575,2]
[351116314,1738342252340,-451.06662129,0.00016575,2]
[351116315,1738342252349,-500.0,0.00016575,2]
[351116316,1738342252358,-1031.69,0.00016575,2]
[351116317,1738342252367,-500.0,0.00016575,2]
[351116318,1738342252376,-500.0,0.00016575,2]
[351116319,1738342252385,-670.33,0.00016575,2]
[351116320,1738342252395,-500.0,0.00016575,2]
[351116321,1738342252403,-500.0,0.00016575,2]
[351116322,1738342252412,-993.78,0.00016575,2]
[351116323,1738342252421,-500.0,0.00016575,2]
[351116324,1738342252431,-500.0,0.00016575,2]
[351116325,1738342252440,-2751.51,0.00016575,2]
[351116326,1738342252450,-500.0,0.00016575,2]
[351116327,1738342252460,-500.0,0.00016575,2]
[351116328,1738342252469,-1282.54,0.00016575,2]
[351116329,1738342252482,-500.0,0.00016575,2]
[351116330,1738342252492,-500.0,0.00016575,2]
[351116331,1738342252501,-1329.51,0.00016575,2]
[351116332,1738342252510,-3525.57,0.00016575,2]
[351116333,1738342252519,-500.0,0.00016575,2]
[351116334,1738342252528,-1305.13,0.00016575,2]
[351116335,1738342252537,-688.66,0.00016575,2]
[351116336,1738342252546,-500.0,0.00016575,2]
[351116337,1738342252557,-841.88,0.00016575,2]
[351116338,1738342252568,-674.52,0.00016575,2]
[351116339,1738342252578,-845.67,0.00016575,2]
[351116340,1738342252587,-500.0,0.00016575,2]
[351116341,1738342252598,-247.94629441,0.00016575,2]
[351116342,1738342252608,-500.0,0.00016575,2]
[351116343,1738342252618,-580.04,0.00016575,2]
[351116344,1738342252627,-1244.66,0.00016575,2]
[351116345,1738342252637,-727.99,0.00016575,2]
[351116346,1738342252648,-500.0,0.00016575,2]
[351116347,1738342252657,-500.0,0.00016575,2]
[351116348,1738342252666,-2533.9,0.00016611,2]
[351116349,1738342252675,-590.72,0.00016611,2]
[351116350,1738342252685,-2265.53,0.00016611,2]
[351116351,1738342252694,-738.79,0.00016611,2]
[351116352,1738342252704,-500.0,0.00016611,2]
[351116353,1738342252713,-737.08,0.00016611,2]
[351116354,1738342252723,-991.0,0.00016646,2]
[351116355,1738342252732,-155.94,0.00016658,30]
[351116356,1738342252742,-5000.0,0.00016684,4]
[351116357,1738342252752,-600.0,0.000167,6]
[351116358,1738342252762,-500.0,0.00016711,2]
[351116359,1738342252772,-500.0,0.00016711,2]
[351116360,1738342252782,-500.0,0.00016711,2]
[351116361,1738342252792,-500.0,0.00016711,2]
[351116362,1738342252801,-500.0,0.00016711,2]
[351116363,1738342252812,-500.0,0.00016711,2]
[351116364,1738342252822,-503.49443966,0.00016711,2]
[351116365,1738342252832,-504.50932349,0.00016711,2]
[351116366,1738342252841,-500.0,0.00016711,2]
[351116367,1738342252850,-500.0,0.00016711,2]
[351116368,1738342252860,-500.0,0.00016711,2]
[351116369,1738342252869,-527.16131835,0.00016711,2]
[351116370,1738342252878,-500.0,0.00016711,2]
[351116371,1738342252888,-500.0,0.00016711,2]
[351116372,1738342252897,-500.0,0.00016711,2]
[351116373,1738342252907,-500.0,0.00016711,2]
[351116374,1738342252917,-193.09562324,0.00016711,2]
[351116375,1738342252926,-394.27680408,0.00016711,2]
[351116376,1738342252936,-500.0,0.00016711,2]
[351116377,1738342252945,-500.0,0.00016711,2]
[351116378,1738342252955,-500.0,0.00016711,2]
[351116379,1738342252964,-549.2699544,0.00016711,2]
[351116380,1738342252973,-526.92660301,0.00016711,2]
[351116381,1738342252982,-500.0,0.00016711,2]
[351116382,1738342252992,-500.0,0.00016711,2]
[351116383,1738342253001,-500.0,0.00016711,2]
[351116384,1738342253011,-500.0,0.00016711,2]
[351116385,1738342253020,-500.0,0.00016711,2]
[351116386,1738342253029,-500.0,0.00016711,2]
[351116387,1738342253038,-500.0,0.00016711,2]
[351116388,1738342253047,-506.22100151,0.00016711,2]
[351116389,1738342253057,-500.0,0.00016711,2]
[351116390,1738342253066,-500.0,0.00016711,2]
[351116391,1738342253075,-500.0,0.00016711,2]
[351116392,1738342253086,-500.0,0.00016711,2]
[351116393,1738342253095,-500.0,0.00016711,2]
[351116394,1738342253104,-500.0,0.00016711,2]
[351116395,1738342253115,-500.0,0.00016711,2]
[351116396,1738342253125,-500.0,0.00016711,2]
[351116397,1738342253134,-500.0,0.00016711,2]
[351116398,1738342253144,-500.0,0.00016711,2]
[351116399,1738342253154,-500.0,0.00016711,2]
[351116400,1738342253164,-500.0,0.00016711,2]
[351116401,1738342253173,-500.0,0.00016711,2]
[351116402,1738342253182,-502.69140962,0.00016711,2]
[351116403,1738342253191,-500.0,0.00016711,2]
[351116404,1738342253200,-500.0,0.00016711,2]
[351116405,1738342253209,-500.0,0.00016711,2]
[351116406,1738342253218,-500.0,0.00016711,2]
[351116407,1738342253228,-500.0,0.00016711,2]
[351116408,1738342253237,-500.0,0.00016711,2]
[351116409,1738342253246,-500.0,0.00016711,2]
[351116410,1738342253257,-500.0,0.00016711,2]
[351116411,1738342253267,-500.0,0.00016711,2]
[351116412,1738342253276,-396.67576567,0.00016711,2]
[351116413,1738342253285,-500.0,0.00016711,2]
[351116414,1738342253295,-500.0,0.00016712,2]
[351116415,1738342253306,-534.80061716,0.00016712,2]
[351116416,1738342253316,-169.67340097,0.00016712,2]
[351116417,1738342253325,-500.0,0.00016712,2]
[351116418,1738342253335,-500.0,0.00016712,2]
[351116419,1738342253345,-500.0,0.00016712,2]
[351116420,1738342253355,-500.0,0.00016712,2]
[351116421,1738342253364,-500.0,0.00016712,2]
[351116422,1738342253373,-500.0,0.00016712,2]
[351116423,1738342253383,-500.0,0.00016712,2]
[351116424,1738342253392,-500.0,0.00016712,2]
[351116425,1738342253401,-296.90920668,0.00016712,2]
[351116426,1738342253411,-500.0,0.00016712,2]
[351116427,1738342253419,-500.0,0.00016712,2]
[351116428,1738342253429,-500.0,0.00016712,2]
[351116429,1738342253438,-565.74,0.00016712,2]
[351116430,1738342253447,-398.96008977,0.00016712,2]
[351116431,1738342253456,-500.0,0.00016712,2]
[351116432,1738342253465,-500.0,0.00016712,2]
[351116433,1738342253474,-799.26,0.00016712,2]
[351116434,1738342253485,-500.0,0.00016712,2]
[351116435,1738342253496,-500.0,0.00016712,2]
[351116436,1738342253505,-500.0,0.00016712,2]
[351116437,1738342253514,-500.0,0.00016712,2]
[351116438,1738342253523,-500.0,0.00016712,2]
[351116439,1738342253533,-500.0,0.00016712,2]
[351116440,1738342253542,-500.0,0.00016712,2]
[351116441,1738342253551,-599.655912,0.00016712,2]
[351116442,1738342253562,-500.0,0.00016712,2]
[351116443,1738342253572,-500.0,0.00016712,2]
[351116444,1738342253581,-500.0,0.00016712,2]
[351116445,1738342253590,-500.0,0.00016712,2]
[351116446,1738342253599,-582.941315,0.00016712,2]
[351116447,1738342253608,-500.0,0.00016712,2]
[351116448,1738342253617,-847.94,0.00016712,2]
[351116449,1738342253626,-500.0,0.00016712,2]
[351116450,1738342253635,-524.61,0.00016712,2]
[351116451,1738342253645,-500.0,0.00016712,2]
[351116452,1738342253654,-806.25,0.00016712,2]
[351116453,1738342253663,-791.88,0.00016712,2]
[351116454,1738342253672,-705.27,0.00016712,2]
[351116455,1738342253681,-500.0,0.00016712,2]
[351116456,1738342253690,-500.0,0.00016712,2]
[351116457,1738342253699,-869.24,0.00016712,2]
[351116458,1738342253708,-719.69,0.00016712,2]
[351116459,1738342253717,-500.0,0.00016712,2]
[351116460,1738342253727,-821.32,0.00016712,2]
[351116461,1738342253736,-500.0,0.00016712,2]
[351116462,1738342253745,-500.0,0.00016712,2]
[351116463,1738342253754,-500.0,0.00016712,2]
[351116464,1738342253763,-500.0,0.00016712,2]
[351116465,1738342253772,-500.0,0.00016712,2]
[351116466,1738342253781,-905.75,0.00016712,2]
[351116467,1738342253790,-500.0,0.00016712,2]
[351116468,1738342253799,-573.01,0.00016712,2]
[351116469,1738342253809,-740.51,0.00016712,2]
[351116470,1738342253819,-500.0,0.00016712,2]
[351116471,1738342253828,-500.0,0.00016712,2]
[351116472,1738342253837,-500.0,0.00016712,2]
[351116473,1738342253846,-500.0,0.00016712,2]
[351116474,1738342253855,-507.9,0.00016712,2]
[351116475,1738342253864,-500.0,0.00016712,2]
[351116476,1738342253873,-500.0,0.00016712,2]
[351116477,1738342253882,-1105.19,0.00016712,2]
[351116478,1738342253892,-710.09,0.00016712,2]
[351116479,1738342253901,-189.62999993,0.00016712,2]
[351116480,1738342253910,-500.0,0.00016712,2]
[351116481,1738342253919,-919.32,0.00016712,2]
[351116482,1738342253929,-577.81,0.00016712,2]
[351116483,1738342253939,-500.0,0.00016712,2]
[351116484,1738342253948,-500.0,0.00016712,2]
[351116485,1738342253959,-500.0,0.00016712,2]
[351116486,1738342253968,-1149.27,0.00016712,2]
[351116487,1738342253977,-550.11,0.00016712,2]
[351116488,1738342253987,-500.0,0.00016712,2]
[351116489,1738342253996,-749.78,0.00016712,2]
[351116490,1738342254004,-500.0,0.00016712,2]
[351116491,1738342254013,-916.66,0.00016712,2]
[351116492,1738342254022,-500.0,0.00016712,2]
[351116493,1738342254031,-500.0,0.00016712,2]
[351116494,1738342254040,-523.77,0.00016712,2]
[351116495,1738342254049,-551.33,0.00016712,2]
[351116496,1738342254058,-1072.53,0.00016712,2]
[351116497,1738342254067,-500.0,0.00016712,2]
[351116498,1738342254076,-737.84,0.00016712,2]
[351116499,1738342254085,-768.71,0.00016712,2]
[351116500,1738342254094,-500.0,0.00016712,2]
[351116501,1738342254104,-500.0,0.00016712,2]
[351116502,1738342254115,-750.33,0.00016712,2]
[351116503,1738342254126,-500.0,0.00016712,2]
[351116504,1738342254135,-500.0,0.00016712,2]
[351116505,1738342254144,-500.0,0.00016712,2]
[351116506,1738342254153,-500.0,0.00016712,2]
[351116507,1738342254162,-242.37447821,0.00016712,2]
[351116508,1738342254171,-500.0,0.00016712,2]
[351116509,1738342254180,-514.9,0.00016712,2]
[351116510,1738342254189,-1122.13,0.00016712,2]
[351116511,1738342254198,-500.0,0.00016712,2]
[351116512,1738342254208,-500.0,0.00016712,2]
[351116513,1738342254219,-659.41,0.00016712,2]
[351116514,1738342254228,-169.6219485,0.00016712,2]
[351116515,1738342254237,-500.0,0.00016712,2]
[351116516,1738342254246,-500.0,0.00016712,2]
[351116517,1738342254255,-623.91,0.00016712,2]
[351116518,1738342254264,-500.0,0.00016712,2]
[351116519,1738342254273,-641.85,0.00016712,2]
[351116520,1738342254283,-500.0,0.00016712,2]
[351116521,1738342254292,-1029.01,0.00016712,2]
[351116522,1738342254301,-832.01,0.00016712,2]
[351116523,1738342254310,-500.0,0.00016712,2]
[351116524,1738342254320,-876.06,0.00016712,2]
[351116525,1738342254329,-343.75672284,0.00016712,2]
[351116526,1738342254338,-500.0,0.00016712,2]
[351116527,1738342254347,-500.0,0.00016712,2]
[351116528,1738342254356,-500.0,0.00016712,2]
[351116529,1738342254365,-500.0,0.00016712,2]
[351116530,1738342254374,-500.0,0.00016712,2]
[351116531,1738342254383,-558.3,0.00016712,2]
[351116532,1738342254393,-579.8,0.00016712,2]
[351116533,1738342254401,-500.0,0.00016712,2]
[351116534,1738342254410,-500.85,0.00016712,2]
[351116535,1738342254419,-500.0,0.00016712,2]
[351116536,1738342254428,-500.0,0.00016712,2]
[351116537,1738342254438,-670.95,0.00016712,2]
[351116538,1738342254447,-500.0,0.00016712,2]
[351116539,1738342254456,-500.0,0.00016712,2]
[351116540,1738342254465,-500.0,0.00016712,2]
[351116541,1738342254474,-500.0,0.00016712,2]
[351116542,1738342254486,-500.0,0.00016712,2]
[351116543,1738342254496,-500.0,0.00016712,7]
[351116544,1738342254505,-500.0,0.00016712,2]
[351116545,1738342254514,-500.0,0.00016712,2]
[351116546,1738342254523,-500.0,0.00016712,2]
[351116547,1738342254537,-503.31342508,0.00016712,2]
[351116548,1738342254546,-500.0,0.00016712,2]
[351116549,1738342254556,-500.0,0.00016712,2]
[351116550,1738342254566,-500.0,0.00016712,2]
[351116551,1738342254576,-500.0,0.00016712,2]
[351116552,1738342254585,-500.0,0.00016712,2]
[351116553,1738342254595,-500.0,0.00016712,2]
[351116554,1738342254604,-500.0,0.00016712,2]
[351116555,1738342254613,-511.44,0.00016712,2]
[351116556,1738342254623,-297.84195498,0.00016712,2]
[351116557,1738342254632,-558.07,0.00016712,2]
[351116558,1738342254641,-500.0,0.00016712,2]
[351116559,1738342254651,-500.0,0.00016712,2]
[351116560,1738342254661,-500.0,0.00016712,2]
[351116561,1738342254670,-500.0,0.00016712,2]
[351116562,1738342254679,-500.0,0.00016712,2]
[351116563,1738342254689,-500.0,0.00016712,2]
[351116564,1738342254699,-500.0,0.00016712,2]
[351116565,1738342254707,-500.0,0.00016712,2]
[351116566,1738342254717,-932.44,0.00016712,2]
[351116567,1738342254726,-770.85,0.00016712,2]
[351116568,1738342254735,-500.0,0.00016712,2]
[351116569,1738342254744,-500.0,0.00016712,2]
[351116570,1738342254754,-1034.02,0.00016712,2]
[351116571,1738342254763,-500.0,0.00016712,2]
[351116572,1738342254774,-537.45,0.00016712,2]
[351116573,1738342254784,-500.0,0.00016712,2]
[351116574,1738342254793,-500.0,0.00016712,2]
[351116575,1738342254803,-259.47637084,0.00016712,2]
[351116576,1738342254813,-500.0,0.00016712,2]
[351116577,1738342254822,-500.0,0.00016712,2]
[351116578,1738342254832,-574.53,0.00016712,2]
[351116579,1738342254841,-500.0,0.00016712,2]
[351116580,1738342254850,-410.77766011,0.00016712,2]
[351116581,1738342254860,-500.0,0.00016712,2]
[351116582,1738342254869,-1210.52,0.00016712,2]
[351116583,1738342254879,-2051.75,0.00016712,2]
[351116584,1738342254889,-735.62,0.00016712,2]
[351116585,1738342254898,-500.0,0.00016712,2]
[351116586,1738342254907,-500.0,0.00016712,2]
[351116587,1738342254917,-558.79,0.00016712,2]
[351116588,1738342254926,-500.0,0.00016712,2]
[351116589,1738342254937,-500.0,0.00016712,2]
[351116590,1738342254946,-500.0,0.00016712,2]
[351116591,1738342254956,-500.0,0.00016712,2]
[351116592,1738342254965,-500.0,0.00016712,2]
[351116593,1738342254975,-500.0,0.00016712,2]
[351116594,1738342254985,-500.0,0.00016712,2]
[351116595,1738342254994,-5553.43,0.00016712,2]
[351116596,1738342255003,-870.17,0.00016712,2]
[351116597,1738342255012,-849.95,0.00016712,2]
[351116598,1738342255021,-842.75,0.00016712,2]
[351116599,1738342255030,-500.0,0.00016712,2]
[351116600,1738342255040,-1427.28,0.00016712,2]
[351116601,1738342255049,-500.0,0.00016712,2]
[351116602,1738342255058,-1862.88,0.00016712,2]
[351116603,1738342255068,-161.82676648,0.00016712,2]
[351116604,1738342255077,-644.36,0.00016712,2]
[351116605,1738342255086,-500.0,0.00016712,2]
[351116606,1738342255095,-500.0,0.00016712,2]
[351116607,1738342255104,-946.07,0.00016712,2]
[351116608,1738342255114,-547.94,0.00016712,2]
[351116609,1738342255123,-652.16,0.00016712,2]
[351116610,1738342255133,-606.93,0.00016712,2]
[351116611,1738342255143,-2122.68,0.00016712,2]
[351116612,1738342255152,-737.5,0.00016712,2]
[351116613,1738342255161,-500.0,0.00016712,2]
[351116614,1738342255171,-500.0,0.00016712,2]
[351116615,1738342255180,-875.05,0.00016712,2]
[351116616,1738342255189,-500.0,0.00016712,2]
[351116617,1738342255198,-500.0,0.00016712,2]
[351116618,1738342255207,-500.0,0.00016712,2]
[351116619,1738342255217,-999.27,0.00016712,2]
[351116620,1738342255228,-3624.9,0.00016712,2]
[351116621,1738342255237,-1114.2,0.00016712,2]
[351116622,1738342255247,-765.42,0.00016712,2]
[351116623,1738342255256,-189.38426247,0.00016712,2]
[351116624,1738342255265,-1586.15,0.00016712,2]
[351116625,1738342255274,-1184.78,0.00016712,2]
[351116626,1738342255284,-901.83,0.00016712,2]
[351116627,1738342255293,-806.47,0.00016712,2]
[351116628,1738342255303,-708.98,0.00016712,2]
[351116629,1738342255312,-500.0,0.00016712,2]
[351116630,1738342255322,-500.0,0.00016712,2]
[351116631,1738342255331,-553.52,0.00016712,2]
[351116632,1738342255341,-500.0,0.00016712,2]
[351116633,1738342255351,-2162.72,0.00016712,2]
[351116634,1738342255362,-500.0,0.00016712,2]
[351116635,1738342255372,-1056.54,0.00016712,2]
[351116636,1738342255382,-500.0,0.00016712,2]
[351116637,1738342255391,-876.06,0.00016712,2]
[351116638,1738342255400,-1223.0,0.00016712,2]
[351116639,1738342255410,-500.0,0.00016712,2]
[351116640,1738342255418,-500.0,0.00016712,2]
[351116641,1738342255427,-910.6,0.00016712,2]
[351116642,1738342255437,-1077.13,0.00016712,2]
[351116643,1738342255447,-543.95,0.00016712,2]
[351116644,1738342255455,-500.0,0.00016712,2]
[351116645,1738342255464,-500.0,0.00016712,2]
[351116646,1738342255473,-637.88,0.00016712,2]
[351116647,1738342255484,-548.61,0.00016712,2]
[351116648,1738342255494,-500.0,0.00016712,2]
[351116649,1738342255503,-375.18531227,0.00016712,2]
[351116650,1738342255512,-165.26734632,0.00016712,2]
[351116651,1738342255521,-500.0,0.00016712,2]
[351116652,1738342255530,-854.38,0.00016712,2]
[351116653,1738342255539,-1738.96,0.00016712,2]
[351116654,1738342255548,-500.0,0.00016712,2]
[351116655,1738342255558,-500.0,0.00016712,2]
[351116656,1738342255569,-985.04,0.00016712,2]
[351116657,1738342255579,-500.0,0.00016712,2]
[351116658,1738342255588,-500.0,0.00016712,2]
[351116659,1738342255596,-696.95,0.00016712,2]
[351116660,1738342255605,-500.0,0.00016712,2]
[351116661,1738342255615,-736.48,0.00016712,2]
[351116662,1738342255623,-907.33,0.00016712,2]
[351116663,1738342255632,-500.0,0.00016712,2]
[351116664,1738342255642,-500.0,0.00016712,2]
[351116665,1738342255651,-1084.41,0.00016712,2]
[351116666,1738342255660,-500.0,0.00016712,2]
[351116667,1738342255669,-590.95,0.00016712,2]
[351116668,1738342255678,-1161.06,0.00016712,2]
[351116669,1738342255687,-1073.16,0.00016712,2]
[351116670,1738342255698,-500.0,0.00016712,2]
[351116671,1738342255707,-625.53,0.00016712,2]
[351116672,1738342255716,-1101.76,0.00016712,2]
[351116673,1738342255726,-1873.5,0.00016712,2]
[351116674,1738342255734,-599.69,0.00016712,2]
[351116675,1738342255743,-500.0,0.00016712,2]
[351116676,1738342255752,-1821.67,0.00016712,2]
[351116677,1738342255761,-1313.27,0.00016712,2]
[351116678,1738342255770,-618.56,0.00016712,2]
[351116679,1738342255779,-500.0,0.00016712,2]